[Event "Nové Hrady - Open"]
[Site "Nové Hrady, Czech Republic"]
[Date "2024.08.17"]
[Round "7.2"]
[White "Hrbek, Jáchym"]
[Black "Kaiser, Richard"]
[Result "1-0"]
[TimeControl "2x90min+30s"]
[WhiteFideId "23709138"]
[BlackFideId "4651286"]
[WhiteElo "1996"]
[BlackElo "2019"]

1. e4 {[%clk 01:30:52]} {[%emt 00:00:07]} e6 {[%clk 01:30:52]} {[%emt
00:00:09]} 2. d4 {[%clk 01:30:54]} {[%emt 00:00:25]} d5 {[%clk 01:31:20]}
{[%emt 00:00:05]} 3. Nc3 {[%clk 01:30:09]} {[%emt 00:01:14]} Be7 {[%clk
01:31:32]} {[%emt 00:00:19]} 4. Bd3 {[%clk 01:24:57]} {[%emt 00:05:41]} Nf6
{[%clk 01:25:20]} {[%emt 00:06:43]} 5. Nf3 {[%clk 01:21:46]} {[%emt 00:03:40]}
a6 {[%clk 01:21:33]} {[%emt 00:04:17]} 6. Bf4 {[%clk 01:17:53]} {[%emt
00:04:22]} c5 {[%clk 01:15:14]} {[%emt 00:06:50]} 7. dxc5 {[%clk 01:08:48]}
{[%emt 00:09:33]} Bxc5 {[%clk 01:15:04]} {[%emt 00:00:43]} 8. Qe2 {[%clk
00:58:20]} {[%emt 00:10:58]} d4 {[%clk 01:14:16]} {[%emt 00:01:18]} 9. Nb1
{[%clk 00:56:00]} {[%emt 00:02:49]} Nc6 {[%clk 01:10:33]} {[%emt 00:04:13]} 10.
Nbd2 {[%clk 00:55:10]} {[%emt 00:01:20]} h6 {[%clk 01:02:11]} {[%emt 00:08:52]}
11. O-O-O {[%clk 00:52:03]} {[%emt 00:03:36]} Nh5 {[%clk 01:00:44]} {[%emt
00:01:58]} 12. Bg3 {[%clk 00:51:13]} {[%emt 00:01:18]} Nxg3 {[%clk 01:01:04]}
{[%emt 00:00:11]} 13. hxg3 {[%clk 00:51:37]} {[%emt 00:00:06]} e5 {[%clk
00:58:31]} {[%emt 00:03:04]} 14. Nb3 {[%clk 00:49:48]} {[%emt 00:02:19]} Bb6
{[%clk 00:57:56]} {[%emt 00:01:05]} 15. Bc4 {[%clk 00:46:16]} {[%emt 00:04:02]}
Qe7 {[%clk 00:57:16]} {[%emt 00:01:10]} 16. Nh4 {[%clk 00:41:48]} {[%emt
00:04:56]} Qg5+ {[%clk 00:52:11]} {[%emt 00:05:37]} 17. Kb1 {[%clk 00:41:19]}
{[%emt 00:00:54]} Bg4 {[%clk 00:44:20]} {[%emt 00:08:27]} 18. f3 {[%clk
00:41:10]} {[%emt 00:00:38]} Bd7 {[%clk 00:44:33]} {[%emt 00:00:17]} 19. Qf2
{[%clk 00:35:48]} {[%emt 00:05:52]} Qf6 {[%clk 00:43:12]} {[%emt 00:01:51]} 20.
f4 {[%clk 00:15:12]} {[%emt 00:21:06]} O-O-O {[%clk 00:40:33]} {[%emt
00:03:09]} 21. Rhf1 {[%clk 00:13:39]} {[%emt 00:02:04]} Rhf8 {[%clk 00:36:07]}
{[%emt 00:04:55]} 22. Qf3 {[%clk 00:11:06]} {[%emt 00:03:03]} Qe7 {[%clk
00:33:36]} {[%emt 00:03:01]} 23. a3 {[%clk 00:05:55]} {[%emt 00:05:41]} g6
{[%clk 00:31:06]} {[%emt 00:03:00]} 24. Qf2 {[%clk 00:04:55]} {[%emt 00:01:30]}
Kb8 {[%clk 00:27:52]} {[%emt 00:03:44]} 25. Bd5 {[%clk 00:02:49]} {[%emt
00:02:36]} Ka7 {[%clk 00:27:33]} {[%emt 00:00:49]} 26. Rd3 {[%clk 00:02:06]}
{[%emt 00:01:12]} Na5 {[%clk 00:17:10]} {[%emt 00:10:54]} 27. Nxa5 {[%clk
00:02:13]} {[%emt 00:00:24]} Bxa5 {[%clk 00:17:33]} {[%emt 00:00:06]} 28. c4
{[%clk 00:00:35]} {[%emt 00:02:08]} Bb6 {[%clk 00:14:13]} {[%emt 00:03:50]} 29.
fxe5 {[%clk 00:00:39]} {[%emt 00:00:26]} Qxe5 {[%clk 00:14:07]} {[%emt
00:00:36]} 30. Qf4 {[%clk 00:00:46]} {[%emt 00:00:23]} Qxf4 {[%clk 00:14:09]}
{[%emt 00:00:28]} 31. gxf4 {[%clk 00:01:05]} {[%emt 00:00:11]} Bg4 {[%clk
00:13:51]} {[%emt 00:00:48]} 32. Nf3 {[%clk 00:01:06]} {[%emt 00:00:29]} Bxf3
{[%clk 00:12:58]} {[%emt 00:01:23]} 33. Rdxf3 {[%clk 00:01:06]} {[%emt
00:00:29]} h5 {[%clk 00:12:03]} {[%emt 00:01:25]} 34. Kc2 {[%clk 00:00:55]}
{[%emt 00:00:42]} Rd7 {[%clk 00:11:53]} {[%emt 00:00:40]} 35. Kd3 {[%clk
00:01:10]} {[%emt 00:00:15]} a5 {[%clk 00:10:19]} {[%emt 00:02:04]} 36. b4
{[%clk 00:00:52]} {[%emt 00:00:47]} Bd8 {[%clk 00:10:05]} {[%emt 00:00:45]} 37.
Kxd4 {[%clk 00:00:48]} {[%emt 00:00:31]} Be7 {[%clk 00:10:21]} {[%emt
00:00:18]} 38. c5 {[%clk 00:00:35]} {[%emt 00:00:43]} f5 {[%clk 00:09:25]}
{[%emt 00:01:26]} 39. Kc4 {[%clk 00:00:37]} {[%emt 00:00:27]} fxe4 {[%clk
00:09:49]} {[%emt 00:00:05]} 40. Bxe4 {[%clk 00:01:02]} {[%emt 00:00:06]} Rc7
{[%clk 00:05:56]} {[%emt 00:04:23]} 41. Kb5 {[%clk 00:00:34]} {[%emt 00:00:58]}
Rf6 {[%clk 00:05:32]} {[%emt 00:00:55]} 42. Kxa5 {[%clk 00:00:48]} {[%emt
00:00:15]} b6+ {[%clk 00:05:32]} {[%emt 00:00:30]} 43. cxb6+ {[%clk 00:00:44]}
{[%emt 00:00:34]} Rxb6 {[%clk 00:05:58]} {[%emt 00:00:04]} 44. Rg3 {[%clk
00:00:40]} {[%emt 00:00:34]} Re6 {[%clk 00:03:26]} {[%emt 00:03:02]} 45. Bd5
{[%clk 00:00:33]} {[%emt 00:00:37]} Rd6 {[%clk 00:03:14]} {[%emt 00:00:43]} 46.
Be4 {[%clk 00:00:40]} {[%emt 00:00:22]} Re6 {[%clk 00:03:26]} {[%emt 00:00:17]}
47. Bxg6 {[%clk 00:00:37]} {[%emt 00:00:33]} Ra6+ {[%clk 00:02:43]} {[%emt
00:01:14]} 48. Kb5 {[%clk 00:01:06]} h4 {[%clk 00:02:37]} {[%emt 00:00:37]} 49.
Rg4 {[%clk 00:01:12]} {[%emt 00:00:24]} Rxa3 {[%clk 00:02:53]} {[%emt
00:00:13]} 50. Be4 {[%clk 00:01:09]} {[%emt 00:00:35]} Bf6 {[%clk 00:02:11]}
{[%emt 00:01:11]} 51. Rg8 {[%clk 00:01:18]} {[%emt 00:00:20]} Rb7+ {[%clk
00:01:24]} {[%emt 00:01:18]} 52. Bxb7 {[%clk 00:01:42]} {[%emt 00:00:06]} Kxb7
{[%clk 00:01:49]} {[%emt 00:00:05]} 53. Rg6 {[%clk 00:01:26]} {[%emt 00:00:45]}
1-0

[Event "Nové Hrady - Open"]
[Site "Nové Hrady, Czech Republic"]
[Date "2024.08.17"]
[Round "7.3"]
[White "Šťastná, Martina"]
[Black "Šebesta, Marek"]
[Result "1-0"]
[TimeControl "2x90min+30s"]
[WhiteFideId "385123"]
[BlackFideId "23765119"]
[WhiteElo "1945"]
[BlackElo "1495"]

1. e4 {[%clk 01:30:58]} e5 {[%clk 01:30:58]} {[%emt 00:00:03]} 2. Nf3 {[%clk
01:31:17]} {[%emt 00:00:10]} Nc6 {[%clk 01:31:24]} {[%emt 00:00:05]} 3. Bb5
{[%clk 01:31:39]} {[%emt 00:00:08]} a6 {[%clk 01:31:48]} {[%emt 00:00:06]} 4.
Ba4 {[%clk 01:32:04]} {[%emt 00:00:05]} Nf6 {[%clk 01:31:51]} {[%emt 00:00:26]}
5. O-O {[%clk 01:32:11]} {[%emt 00:00:23]} b5 {[%clk 01:31:58]} {[%emt
00:00:23]} 6. Bb3 {[%clk 01:32:32]} {[%emt 00:00:09]} Bc5 {[%clk 01:32:01]}
{[%emt 00:00:28]} 7. c3 {[%clk 01:27:55]} {[%emt 00:05:06]} d6 {[%clk
01:28:10]} {[%emt 00:04:21]} 8. Re1 {[%clk 01:27:08]} {[%emt 00:01:16]} O-O
{[%clk 01:26:33]} {[%emt 00:02:08]} 9. h3 {[%clk 01:26:17]} {[%emt 00:01:20]}
Be6 {[%clk 01:21:11]} {[%emt 00:05:52]} 10. Bc2 {[%clk 01:25:25]} {[%emt
00:01:23]} Re8 {[%clk 01:17:13]} {[%emt 00:04:29]} 11. d4 {[%clk 01:22:14]}
{[%emt 00:03:40]} exd4 {[%clk 01:15:19]} {[%emt 00:02:24]} 12. cxd4 {[%clk
01:22:33]} {[%emt 00:00:11]} Bb4 {[%clk 01:15:33]} {[%emt 00:00:15]} 13. Nc3
{[%clk 01:22:07]} {[%emt 00:00:56]} d5 {[%clk 01:07:21]} {[%emt 00:08:43]} 14.
e5 {[%clk 01:20:25]} {[%emt 00:02:12]} Nd7 {[%clk 01:05:46]} {[%emt 00:02:05]}
15. Bxh7+ {[%clk 01:02:08]} {[%emt 00:18:47]} Kxh7 {[%clk 00:54:48]} {[%emt
00:11:30]} 16. Ng5+ {[%clk 01:02:16]} {[%emt 00:00:21]} Kg8 {[%clk 00:51:41]}
{[%emt 00:03:37]} 17. Qh5 {[%clk 00:59:51]} {[%emt 00:02:55]} Nf8 {[%clk
00:50:50]} {[%emt 00:01:21]} 18. Be3 {[%clk 00:59:31]} {[%emt 00:00:49]} Bxc3
{[%clk 00:44:51]} {[%emt 00:06:30]} 19. bxc3 {[%clk 00:59:51]} {[%emt
00:00:09]} f6 {[%clk 00:36:56]} {[%emt 00:08:24]} 20. Nxe6 {[%clk 00:58:44]}
{[%emt 00:01:38]} Rxe6 {[%clk 00:33:56]} {[%emt 00:03:31]} 21. exf6 {[%clk
00:58:55]} {[%emt 00:00:19]} Qxf6 {[%clk 00:33:07]} {[%emt 00:01:19]} 22. Qxd5
{[%clk 00:59:05]} {[%emt 00:00:19]} Rd8 {[%clk 00:32:23]} {[%emt 00:01:14]} 23.
Qb3 {[%clk 00:58:59]} {[%emt 00:00:36]} Na5 {[%clk 00:31:16]} {[%emt 00:01:37]}
24. Qc2 {[%clk 00:55:35]} {[%emt 00:03:53]} Nc4 {[%clk 00:29:17]} {[%emt
00:02:30]} 25. a4 {[%clk 00:54:02]} {[%emt 00:02:03]} c6 {[%clk 00:27:45]}
{[%emt 00:02:02]} 26. axb5 {[%clk 00:51:54]} {[%emt 00:02:39]} cxb5 {[%clk
00:27:27]} {[%emt 00:00:48]} 27. Rad1 {[%clk 00:51:39]} {[%emt 00:00:43]} Rd5
{[%clk 00:25:51]} {[%emt 00:02:06]} 28. Qe2 {[%clk 00:49:42]} {[%emt 00:02:27]}
Nd7 {[%clk 00:23:54]} {[%emt 00:02:29]} 29. Qg4 {[%clk 00:49:01]} {[%emt
00:01:10]} Ndb6 {[%clk 00:19:33]} {[%emt 00:04:52]} 30. Qg3 {[%clk 00:48:04]}
{[%emt 00:01:26]} Na4 {[%clk 00:18:07]} {[%emt 00:01:54]} 31. Bf4 {[%clk
00:44:51]} {[%emt 00:03:45]} Nab2 {[%clk 00:13:54]} {[%emt 00:04:43]} 32. Rb1
{[%clk 00:42:31]} {[%emt 00:02:49]} a5 {[%clk 00:12:40]} {[%emt 00:01:46]} 33.
Qf3 {[%clk 00:40:58]} {[%emt 00:02:01]} Rf5 {[%clk 00:12:02]} {[%emt 00:01:09]}
34. Qa8+ {[%clk 00:41:21]} {[%emt 00:00:07]} Kh7 {[%clk 00:12:19]} {[%emt
00:00:13]} 35. Bg3 {[%clk 00:41:32]} {[%emt 00:00:18]} Nd3 {[%clk 00:12:02]}
{[%emt 00:00:48]} 36. Re4 {[%clk 00:40:22]} {[%emt 00:01:40]} Rxe4 {[%clk
00:11:09]} {[%emt 00:01:24]} 37. Qxe4 {[%clk 00:40:45]} {[%emt 00:00:06]} Nxf2
{[%clk 00:09:56]} {[%emt 00:01:43]} 38. Bxf2 {[%clk 00:40:51]} {[%emt
00:00:24]} Nd2 {[%clk 00:10:25]} 39. Qd3 {[%clk 00:40:03]} {[%emt 00:01:17]}
Nxb1 {[%clk 00:10:48]} {[%emt 00:00:10]} 40. g4 {[%clk 00:39:34]} {[%emt
00:00:57]} Kg6 {[%clk 00:08:54]} {[%emt 00:02:25]} 41. Qxb1 {[%clk 00:38:47]}
{[%emt 00:01:17]} a4 {[%clk 00:07:22]} {[%emt 00:02:02]} 42. Be3 {[%clk
00:36:49]} {[%emt 00:02:28]} a3 {[%clk 00:05:35]} {[%emt 00:02:18]} 43. Bc1
{[%clk 00:36:27]} {[%emt 00:00:50]} a2 {[%clk 00:06:03]} {[%emt 00:00:04]} 44.
gxf5+ {[%clk 00:36:47]} {[%emt 00:00:09]} Qxf5 {[%clk 00:06:16]} {[%emt
00:00:18]} 45. Qxa2 {[%clk 00:37:00]} {[%emt 00:00:16]} Qxh3 {[%clk 00:05:29]}
{[%emt 00:01:18]} 46. Qg2+ {[%clk 00:36:59]} {[%emt 00:00:30]} Qxg2+ {[%clk
00:05:57]} {[%emt 00:00:02]} 47. Kxg2 {[%clk 00:37:21]} {[%emt 00:00:08]} Kf5
{[%clk 00:06:15]} {[%emt 00:00:12]} 48. Kf3 {[%clk 00:37:44]} {[%emt 00:00:06]}
g6 {[%clk 00:06:32]} {[%emt 00:00:14]} 49. Bh6 {[%clk 00:37:43]} {[%emt
00:00:31]} Ke6 {[%clk 00:06:40]} {[%emt 00:00:23]} 50. Ke4 {[%clk 00:38:05]}
{[%emt 00:00:07]} Kd6 {[%clk 00:07:04]} {[%emt 00:00:06]} 51. Bf4+ {[%clk
00:37:50]} {[%emt 00:00:45]} Kc6 {[%clk 00:07:21]} {[%emt 00:00:13]} 52. d5+
{[%clk 00:38:09]} {[%emt 00:00:10]} Kc5 {[%clk 00:07:37]} {[%emt 00:00:15]} 53.
d6 {[%clk 00:38:29]} {[%emt 00:00:10]} g5 {[%clk 00:07:58]} {[%emt 00:00:08]}
54. Bg3 {[%clk 00:38:54]} {[%emt 00:00:05]} Kc4 {[%clk 00:08:11]} {[%emt
00:00:18]} 55. d7 {[%clk 00:39:17]} {[%emt 00:00:07]} Kxc3 {[%emt 00:00:09]} 56.
d8=Q {[%emt 00:00:07]} b4 {[%emt 00:00:37]} 57. Qd3+ {[%emt 00:00:13]} Kb2
{[%clk 00:09:19]} 58. Be5+ {[%clk 00:39:39]} {[%emt 00:00:22]} Kc1 {[%clk
00:09:48]} {[%emt 00:00:02]} 59. Ke3 {[%clk 00:39:48]} {[%emt 00:00:20]} b3
{[%clk 00:10:08]} {[%emt 00:00:11]} 60. Qd2+ {[%clk 00:40:09]} {[%emt
00:00:09]} Kb1 {[%clk 00:10:24]} {[%emt 00:00:14]} 61. Qb2# {[%emt 00:00:06]}
1-0

[Event "Nové Hrady - Open"]
[Site "Nové Hrady, Czech Republic"]
[Date "2024.08.17"]
[Round "7.4"]
[White "Rendl, Luboš"]
[Black "Hokr, Matyáš"]
[Result "1-0"]
[TimeControl "2x90min+30s"]
[WhiteFideId "23750197"]
[BlackFideId "23734663"]
[WhiteElo "1848"]
[BlackElo "1641"]

1. e4 {[%clk 01:30:58]} {[%emt 00:00:02]} e6 {[%clk 01:30:35]} {[%emt
00:00:25]} 2. d4 {[%clk 01:31:22]} {[%emt 00:00:06]} d5 {[%clk 01:30:21]}
{[%emt 00:00:43]} 3. Nc3 {[%clk 01:29:23]} {[%emt 00:02:30]} Bb4 {[%clk
01:28:33]} {[%emt 00:02:18]} 4. e5 {[%clk 01:29:47]} {[%emt 00:00:06]} Ne7
{[%clk 01:23:56]} {[%emt 00:05:06]} 5. a3 {[%clk 01:27:53]} {[%emt 00:02:25]}
Bxc3+ {[%clk 01:20:38]} {[%emt 00:03:49]} 6. bxc3 {[%clk 01:28:16]} {[%emt
00:00:07]} c5 {[%clk 01:20:18]} {[%emt 00:00:42]} 7. Qg4 {[%clk 01:24:03]}
{[%emt 00:04:50]} Ng6 {[%clk 01:19:21]} {[%emt 00:01:25]} 8. Nf3 {[%clk
01:23:10]} {[%emt 00:01:25]} cxd4 {[%clk 01:14:48]} {[%emt 00:05:03]} 9. cxd4
{[%clk 01:23:25]} {[%emt 00:00:14]} Qc7 {[%clk 01:06:25]} {[%emt 00:08:54]} 10.
Bd2 {[%clk 01:21:50]} {[%emt 00:02:05]} h5 {[%clk 01:00:35]} {[%emt 00:06:21]}
11. Qg5 {[%clk 01:13:45]} {[%emt 00:08:33]} Qxc2 {[%clk 00:59:53]} {[%emt
00:01:13]} 12. Bb5+ {[%clk 01:13:16]} {[%emt 00:00:59]} Bd7 {[%clk 00:57:59]}
{[%emt 00:02:24]} 13. Bxd7+ {[%clk 01:11:58]} {[%emt 00:01:48]} Nxd7 {[%clk
00:56:28]} {[%emt 00:02:00]} 14. O-O {[%clk 01:12:15]} {[%emt 00:00:14]} Qf5
{[%clk 00:56:07]} {[%emt 00:00:50]} 15. Qxf5 {[%clk 01:09:20]} {[%emt
00:03:26]} exf5 {[%clk 00:56:36]} 16. Bb4 {[%clk 01:08:26]} {[%emt 00:01:25]}
h4 {[%clk 00:50:23]} {[%emt 00:06:42]} 17. Rac1 {[%clk 01:07:07]} {[%emt
00:01:50]} Nf4 {[%clk 00:47:51]} {[%emt 00:03:01]} 18. Rc7 {[%clk 01:07:08]}
{[%emt 00:00:30]} Rb8 {[%clk 00:41:30]} {[%emt 00:06:51]} 19. Ng5 {[%clk
00:56:02]} {[%emt 00:11:36]} Ne6 {[%clk 00:16:03]} {[%emt 00:25:56]} 20. Nxe6
{[%clk 00:54:17]} {[%emt 00:02:15]} fxe6 {[%clk 00:16:16]} {[%emt 00:00:17]} 21.
Rfc1 {[%clk 00:52:58]} {[%emt 00:01:50]} Rg8 {[%clk 00:13:16]} {[%emt
00:03:30]} 22. Bd6 {[%clk 00:50:00]} {[%emt 00:03:28]} Kd8 {[%clk 00:10:38]}
{[%emt 00:03:06]} 23. f4 {[%clk 00:47:57]} {[%emt 00:02:34]} g6 {[%clk
00:06:52]} {[%emt 00:04:17]} 24. h3 {[%clk 00:46:54]} {[%emt 00:01:32]} Rh8
{[%clk 00:05:34]} {[%emt 00:01:47]} 25. Kf2 {[%clk 00:45:59]} {[%emt 00:01:26]}
Rg8 {[%clk 00:03:54]} {[%emt 00:02:10]} 26. a4 {[%clk 00:41:07]} {[%emt
00:05:23]} Rh8 {[%clk 00:04:04]} {[%emt 00:00:20]} 27. a5 {[%clk 00:40:26]}
{[%emt 00:01:11]} a6 {[%clk 00:04:10]} {[%emt 00:00:23]} 28. g3 {[%clk
00:37:29]} {[%emt 00:03:27]} b6 {[%clk 00:01:04]} {[%emt 00:03:37]} 29. axb6
{[%clk 00:33:28]} {[%emt 00:04:31]} Nxb6 {[%clk 00:01:02]} {[%emt 00:00:32]} 30.
Be7+ {[%clk 00:32:18]} {[%emt 00:01:39]} Ke8 {[%clk 00:01:23]} {[%emt
00:00:09]} 31. Bf6 {[%clk 00:31:12]} {[%emt 00:01:36]} hxg3+ {[%clk 00:01:08]}
{[%emt 00:00:45]} 32. Kxg3 {[%clk 00:31:06]} {[%emt 00:00:36]} Rh5 {[%clk
00:01:04]} {[%emt 00:00:34]} 33. Re7+ {[%clk 00:30:32]} {[%emt 00:01:04]} Kf8
{[%clk 00:01:25]} {[%emt 00:00:09]} 34. Rcc7 {[%clk 00:29:09]} {[%emt
00:01:53]} Nc8 {[%clk 00:01:27]} {[%emt 00:00:29]} 35. Bg7+ {[%clk 00:28:53]}
{[%emt 00:00:46]} Kg8 {[%clk 00:01:51]} {[%emt 00:00:06]} 36. Re8+ {[%clk
00:29:10]} {[%emt 00:00:11]} Kh7 {[%clk 00:02:16]} {[%emt 00:00:06]} 37. Rh8#
{[%clk 00:28:17]} {[%emt 00:01:24]} Ra8 {[%emt 00:00:09]} 1-0

[Event "Nové Hrady - Open"]
[Site "Nové Hrady, Czech Republic"]
[Date "2024.08.17"]
[Round "7.5"]
[White "Borecký, Andrej"]
[Black "Černý, Zbyšek"]
[Result "1-0"]
[TimeControl "2x90min+30s"]
[WhiteFideId "23752670"]
[BlackFideId "23739380"]
[WhiteElo "1672"]
[BlackElo "1582"]

1. e4 {[%clk 01:30:39]} {[%emt 00:00:20]} c5 {[%clk 01:30:41]} {[%emt
00:00:19]} 2. b4 {[%clk 01:30:53]} {[%emt 00:00:17]} d6 {[%clk 01:31:03]}
{[%emt 00:00:07]} 3. bxc5 {[%clk 01:30:57]} {[%emt 00:00:27]} dxc5 {[%clk
01:31:22]} {[%emt 00:00:11]} 4. Nf3 {[%clk 01:30:39]} {[%emt 00:00:47]} a6
{[%clk 01:31:00]} {[%emt 00:00:52]} 5. c3 {[%clk 01:29:05]} {[%emt 00:02:06]}
Nf6 {[%clk 01:31:00]} {[%emt 00:00:29]} 6. e5 {[%clk 01:28:49]} {[%emt
00:00:46]} Nd5 {[%clk 01:30:31]} {[%emt 00:00:59]} 7. d4 {[%clk 01:28:22]}
{[%emt 00:00:57]} cxd4 {[%clk 01:24:46]} {[%emt 00:06:14]} 8. cxd4 {[%clk
01:28:39]} {[%emt 00:00:14]} e6 {[%clk 01:24:51]} {[%emt 00:00:24]} 9. Bd3
{[%clk 01:26:54]} {[%emt 00:02:15]} Be7 {[%clk 01:23:02]} {[%emt 00:02:19]} 10.
O-O {[%clk 01:24:53]} {[%emt 00:02:33]} O-O {[%clk 01:23:24]} {[%emt 00:00:07]}
11. Ba3 {[%clk 01:21:12]} {[%emt 00:04:11]} b5 {[%clk 01:21:19]} {[%emt
00:02:35]} 12. Bxe7 {[%clk 01:19:46]} {[%emt 00:01:56]} Qxe7 {[%clk 01:20:07]}
{[%emt 00:01:41]} 13. Nbd2 {[%clk 01:18:20]} {[%emt 00:01:57]} Bb7 {[%clk
01:17:21]} {[%emt 00:03:16]} 14. Ne4 {[%clk 01:15:27]} {[%emt 00:03:23]} f6
{[%clk 01:05:53]} {[%emt 00:11:58]} 15. exf6 {[%clk 01:06:48]} {[%emt
00:09:09]} Nxf6 {[%clk 01:05:36]} {[%emt 00:00:46]} 16. Nc5 {[%clk 01:06:30]}
{[%emt 00:00:48]} Bd5 {[%clk 01:05:30]} {[%emt 00:00:36]} 17. Re1 {[%clk
01:05:03]} {[%emt 00:01:57]} Nfd7 {[%clk 01:05:15]} {[%emt 00:00:45]} 18. Nxe6
{[%clk 01:04:24]} {[%emt 00:01:09]} Bxe6 {[%clk 01:04:23]} {[%emt 00:01:23]} 19.
d5 {[%clk 01:03:20]} {[%emt 00:01:34]} Nc5 {[%emt 00:03:57]} 20. dxe6 {[%clk
00:59:20]} {[%emt 00:02:39]} Rd8 {[%clk 00:58:50]} {[%emt 00:04:26]} 21. Re3
{[%clk 00:56:54]} {[%emt 00:02:56]} Nc6 {[%clk 00:58:27]} {[%emt 00:00:53]} 22.
Qe2 {[%clk 00:51:53]} {[%emt 00:05:30]} Nxd3 {[%clk 00:54:39]} {[%emt
00:04:19]} 23. Rxd3 {[%clk 00:51:54]} {[%emt 00:00:29]} Rxd3 {[%clk 00:54:26]}
{[%emt 00:00:43]} 24. Qxd3 {[%clk 00:52:14]} {[%emt 00:00:11]} Qxe6 {[%clk
00:54:45]} {[%emt 00:00:10]} 25. Ng5 {[%clk 00:49:41]} {[%emt 00:03:03]} Qg6
{[%clk 00:50:42]} {[%emt 00:04:33]} 26. Qd5+ {[%clk 00:49:13]} {[%emt
00:00:58]} Kf8 {[%clk 00:50:06]} {[%emt 00:01:05]} 27. Ne6+ {[%clk 00:47:35]}
{[%emt 00:02:09]} Ke7 {[%clk 00:44:47]} {[%emt 00:05:48]} 28. Re1 {[%clk
00:45:39]} {[%emt 00:02:27]} Re8 {[%clk 00:43:53]} {[%emt 00:01:24]} 29. Nc7+
{[%clk 00:42:34]} {[%emt 00:03:35]} Kf6 {[%clk 00:42:05]} {[%emt 00:02:18]} 30.
Nxe8+ {[%emt 00:00:40]} 1-0

[Event "Nové Hrady - Open"]
[Site "Nové Hrady, Czech Republic"]
[Date "2024.08.17"]
[Round "7.6"]
[White "Slabý, Martin"]
[Black "Slabý, Matěj"]
[Result "0-1"]
[TimeControl "2x90min+30s"]
[WhiteFideId "23713593"]
[BlackFideId "23734876"]
[WhiteElo "1569"]
[BlackElo "2020"]

1. g4 {[%clk 01:30:54]} {[%emt 00:00:04]} e5 {[%clk 01:30:53]} {[%emt
00:00:09]} 2. Bg2 {[%clk 01:31:17]} {[%emt 00:00:08]} h5 {[%clk 01:31:17]}
{[%emt 00:00:05]} 3. gxh5 {[%clk 01:30:10]} {[%emt 00:01:37]} Qg5 {[%clk
01:31:40]} {[%emt 00:00:07]} 4. Bf3 {[%clk 01:24:51]} {[%emt 00:05:47]} Qh4
{[%clk 01:32:05]} {[%emt 00:00:07]} 5. d3 {[%clk 01:23:56]} {[%emt 00:01:25]}
Bc5 {[%clk 01:32:20]} {[%emt 00:00:14]} 6. e3 {[%clk 01:23:04]} {[%emt
00:01:24]} Ne7 {[%clk 01:25:09]} {[%emt 00:07:41]} 7. Ne2 {[%clk 01:13:15]}
{[%emt 00:10:18]} d5 {[%clk 01:24:55]} {[%emt 00:00:44]} 8. d4 {[%clk
01:08:54]} {[%emt 00:04:51]} exd4 {[%clk 01:21:35]} {[%emt 00:03:50]} 9. exd4
{[%clk 01:08:17]} {[%emt 00:01:07]} Bd6 {[%clk 01:22:00]} {[%emt 00:00:06]} 10.
Ng3 {[%clk 01:06:55]} {[%emt 00:01:48]} Nbc6 {[%clk 01:02:25]} {[%emt
00:20:08]} 11. c3 {[%clk 01:02:43]} {[%emt 00:04:43]} Bd7 {[%clk 00:59:38]}
{[%emt 00:03:16]} 12. Qe2 {[%clk 00:59:28]} {[%emt 00:03:44]} O-O-O {[%clk
00:58:44]} {[%emt 00:01:24]} 13. c4 {[%clk 00:56:05]} {[%emt 00:03:54]} Nxd4
{[%clk 00:58:47]} {[%emt 00:00:28]} 14. Qd1 {[%clk 00:52:51]} {[%emt 00:03:43]}
Nxf3+ {[%clk 00:54:36]} {[%emt 00:04:42]} 15. Qxf3 {[%clk 00:52:13]} {[%emt
00:01:07]} Qxc4 {[%clk 00:55:01]} {[%emt 00:00:04]} 16. Nd2 {[%clk 00:44:59]}
{[%emt 00:07:45]} Bb4 {[%clk 00:55:27]} {[%emt 00:00:05]} 17. Ne2 {[%clk
00:43:14]} {[%emt 00:02:14]} Bg4 {[%clk 00:55:03]} {[%emt 00:00:54]} 18. Kd1
{[%clk 00:41:45]} {[%emt 00:01:59]} Bxf3 {[%clk 00:55:17]} {[%emt 00:00:16]} 19.
Nxc4 {[%clk 00:40:19]} {[%emt 00:01:56]} dxc4+ {[%clk 00:55:41]} {[%emt
00:00:06]} 0-1